bitfinex/quotes_ETHUSD_20240819
["timestamp","ask_amount","ask_price","bid_price","bid_amount"]
[1724088881925,0.50329032,2632.8,2631.9,0.385]
[1724088882091,3.79859,2632.6,2631.9,0.385]
[1724088882289,3.79844,2632.7,2631.9,0.385]
[1724088882290,3.79869,2632.5,2631.9,0.385]
[1724088882490,3.79869,2632.5,2631.2,0.4829584]
[1724088882491,2.3183,2632.9,2631.3,0.385]
[1724088882706,3.79962,2631.9,2631.3,0.385]
[1724088883034,6.11792,2631.9,2631.0,3.80071]
[1724088883334,6.11792,2631.9,2630.7,35.4829584]
[1724088883335,6.11792,2631.9,2631.3,3.80036]
[1724088883489,3.79867,2632.5,2632.1,3.79923]
[1724088883490,2.3183,2632.5,2632.1,3.79923]
[1724088883673,6.11697,2632.5,2631.9,3.79944]
[1724088883873,6.11697,2632.5,2631.5,3.80001]
[1724088883874,3.79906,2632.3,2631.5,3.80001]
[1724088884132,3.79977,2631.8,2630.9,3.80088]
[1724088884431,3.309843,2632.5,2630.8,3.80103]
[1724088884432,3.80011,2631.5,2630.8,3.80103]
[1724088884587,2.4241,2631.6,2630.7,0.385]
[1724088884840,6.2241,2631.6,2630.9,3.80087]
[1724088885055,3.04651,2631.6,2630.7,0.385]
[1724088885276,3.80019,2631.5,2630.7,0.385]
[1724088885423,3.80064,2631.2,2630.7,0.385]
[1724088885624,6.22417,2631.6,2630.8,3.801]
[1724088885829,2.4241,2631.6,2630.7,0.385]
[1724088886076,0.777232,2633.0,2630.8,0.0760006]
[1724088886077,2.4241,2632.2,2630.8,0.0760006]
[1724088886383,0.777232,2633.0,2632.3,3.79886]
[1724088886529,0.777232,2633.0,2632.2,3.79901]
[1724088886530,1.4771582,2633.0,2632.2,3.79901]
[1724088886873,0.777232,2633.0,2632.4,3.79877]
[1724088887084,0.777232,2633.0,2632.2,3.79901]
[1724088887381,0.777232,2633.0,2632.4,3.79872]
[1724088887589,0.777232,2633.0,2632.1,0.0759637]
[1724088887880,0.777232,2633.0,2632.9,7.59618]
[1724088888173,6.27772,2633.9,2633.3,3.79745]
[1724088888329,6.27772,2633.9,2633.2,3.79756]
[1724088888330,3.7968,2633.8,2633.2,3.79756]
[1724088888547,2.74499306,2633.9,2632.4,0.385]
[1724088888778,3.79791,2633.1,2632.5,3.79857]
[1724088889002,3.79833,2632.8,2632.3,0.385]
[1724088889202,2.445,2632.8,2632.3,4.18391]
[1724088889550,6.24333,2632.8,2632.1,3.79919]
[1724088889798,6.24333,2632.8,2631.9,3.79939]
[1724088889799,7.59732,2632.6,2631.9,3.79939]
[1724088890096,2.445,2632.8,2632.1,3.79911]
[1724088890097,0.624333,2632.7,2632.1,3.79911]
[1724088890395,0.624333,2632.7,2631.7,0.385]
[1724088890396,0.624333,2632.7,2631.9,3.79945]
[1724088890603,2.445,2632.8,2631.9,3.79945]
[1724088890805,3.80023,2631.5,2629.7,2.4124]
[1724088890972,3.80017,2631.5,2630.3,3.80182]
[1724088891361,0.55,2632.7,2631.8,3.79958]
[1724088891362,0.01237818,2632.6,2631.8,3.79958]
[1724088891592,3.79841,2632.7,2631.5,0.385]
[1724088891764,3.79841,2632.7,2631.4,4.35649174]
[1724088891765,3.79868,2632.5,2631.4,0.55629174]
[1724088892110,0.629271,2632.7,2631.6,7.59969]
[1724088892111,3.79883,2632.4,2631.6,7.59969]
[1724088892249,0.629271,2632.7,2631.7,3.79979]
[1724088892457,2.4943,2632.9,2632.5,3.79858]
[1724088892811,2.4943,2632.9,2631.9,0.385]
[1724088892950,2.4943,2632.9,2632.0,35.0]
[1724088893284,3.79839,2632.7,2632.1,3.79916]
[1724088893485,4.807477,2632.7,2632.1,3.79916]
[1724088893796,4.807477,2632.7,2631.4,3.80015]
[1724088893797,3.79918,2632.2,2631.4,3.80015]
[1724088893964,2.4268,2632.1,2631.6,3.79984]
[1724088894171,3.79971,2631.8,2631.2,3.80045]
[1724088894574,3.79948,2632.0,2630.9,3.80091]
[1724088894899,3.79944,2632.0,2630.9,0.385]
[1724088895100,2.4268,2632.1,2631.6,7.5999]
[1724088895408,3.79777,2633.2,2631.1,3.80066]
[1724088895409,2.3447,2633.2,2633.0,3.79794]
[1724088895612,4.06070306,2633.9,2632.3,0.385]
[1724088895904,2.3447,2634.0,2633.5,3.79719]
[1724088896112,0.1589306,2634.1,2633.5,3.79718]
[1724088896260,0.1589306,2634.1,2633.6,7.59398]
[1724088896459,0.1589306,2634.1,2633.3,3.79751]
[1724088896703,0.1589306,2634.1,2633.2,35.385]
[1724088896910,0.1589306,2634.1,2633.7,3.79682]
[1724088897212,0.1589306,2634.1,2633.4,0.385]
[1724088897213,0.00998637,2634.1,2633.4,0.385]
[1724088897382,0.00998637,2634.1,2632.8,3.79817]
[1724088897573,3.79708,2633.6,2633.0,3.79793]
[1724088897774,3.79746,2633.4,2632.8,3.79814]
[1724088898314,6.09299,2633.0,2632.3,3.79884]
[1724088898599,2.295,2633.0,2632.5,3.79866]
[1724088898971,2.295,2633.0,2632.3,3.79884]
[1724088898972,6.09295,2633.0,2632.3,3.79884]
[1724088899171,2.295,2633.0,2632.1,3.79916]
[1724088899372,3.79747,2633.4,2631.7,0.48791469]
[1724088899373,3.79747,2633.4,2632.6,3.79844]
[1724088899574,3.79761,2633.3,2632.7,3.79827]
[1724088899827,3.79747,2633.4,2632.8,3.79822]
[1724088900130,4.176868,2633.6,2632.9,3.79809]
[1724088900288,0.379708,2633.6,2632.7,3.79832]
[1724088900665,6.79614,2634.3,2631.8,3.0]
[1724088900666,3.79758,2633.3,2631.8,3.0]
[1724088900808,8.713,2634.3,2632.1,3.79914]
[1724088900809,3.79845,2632.7,2632.1,3.79914]
[1724088901517,3.79798,2633.0,2631.9,3.79943]
[1724088901717,3.0,2633.7,2631.7,3.79972]
[1724088901718,3.79832,2632.8,2631.7,3.79972]
[1724088901902,3.79966,2631.9,2631.2,3.80044]
[1724088902105,3.79966,2631.9,2630.4,2.3304]
[1724088902106,3.79872,2632.5,2631.4,3.80025]
[1724088902289,3.79969,2631.8,2631.2,3.80052]
[1724088902483,3.79948,2632.0,2631.4,3.80024]
[1724088902684,2.4207,2632.2,2631.0,3.80076]
[1724088902915,2.4207,2632.2,2630.6,3.80138]
[1724088902916,3.80048,2631.3,2630.6,3.80138]
[1724088903296,3.80048,2631.3,2630.6,3.80133]
[1724088903541,2.4207,2632.2,2630.4,35.385]
[1724088903709,2.2724,2632.7,2632.3,3.79894]
[1724088903942,2.2724,2632.7,2632.1,3.79915]
[1724088904109,3.79865,2632.6,2631.9,3.79941]
[1724088904309,2.2724,2632.7,2631.4,0.385]
[1724088904549,2.2724,2632.7,2630.7,4.25785652]
[1724088904550,3.799,2632.3,2631.6,3.79987]
[1724088904849,3.7992,2632.2,2631.0,3.80074]
[1724088904995,2.49964,2632.7,2632.0,3.79929]
[1724088904996,3.79853,2632.6,2632.0,3.79929]
[1724088905196,4.477044,2633.5,2632.1,0.379929]
[1724088905197,2.2724,2633.2,2632.1,0.379929]
[1724088905425,2.2724,2633.2,2632.2,0.07596077]
[1724088905596,0.00998637,2634.1,2633.4,3.79725]
[1724088905597,6.07882637,2634.1,2633.4,3.79725]
[1724088906142,3.79697,2633.7,2633.1,3.79768]
[1724088906345,2.28238637,2634.1,2633.6,3.79705]
[1724088906513,3.79669,2633.9,2633.3,3.79748]
[1724088906694,3.79669,2633.9,2633.2,3.79761]
[1724088906695,3.79672,2633.9,2633.2,3.79761]
[1724088906899,2.51062501,2634.1,2632.6,3.79845]
[1724088907140,3.7979,2633.1,2632.2,3.79899]
[1724088907363,3.79857,2632.6,2632.0,3.79932]
[1724088907527,2.4186,2633.0,2632.1,3.79914]
[1724088907727,3.79853,2632.6,2632.1,3.79923]
[1724088907944,3.7984,2632.7,2632.1,3.79923]
[1724088908227,3.7984,2632.7,2631.6,38.79993]
[1724088908228,2.66046,2633.0,2631.6,35.385]
[1724088908431,3.79831,2632.8,2632.2,3.79901]
[1724088908651,2.4186,2633.0,2631.8,3.79958]
[1724088908652,3.79876,2632.5,2631.8,3.79958]
[1724088908796,6.21658,2633.0,2631.6,3.79991]
[1724088908797,3.79918,2632.2,2631.6,3.79991]
[1724088908999,2.3388,2632.1,2630.6,3.80141]
[1724088909203,3.7999,2631.7,2631.0,3.80074]
[1724088909451,3.79948,2632.0,2631.3,3.80027]
[1724088909855,3.79948,2632.0,2630.6,35.0]
[1724088909856,2.4461,2632.7,2631.4,3.80018]
[1724088910003,2.4461,2632.7,2630.6,38.80132]
[1724088910004,3.79977,2631.8,2631.0,7.60151]
[1724088910345,4.04315,2632.6,2631.1,0.0759991]
[1724088910346,3.7986,2632.6,2631.1,0.0759991]
[1724088910545,3.7986,2632.6,2631.8,3.79958]
[1724088910758,3.79924,2632.1,2631.5,3.80007]
[1724088911040,3.79904,2632.3,2631.6,3.79988]
[1724088911247,2.4461,2632.7,2631.6,0.379988]
[1724088911397,2.4461,2632.7,2631.3,3.80031]
[1724088911616,4.67155924,2634.1,2631.8,3.79965]
[1724088911617,2.2809,2633.2,2631.8,3.79965]
[1724088911798,0.62555924,2634.1,2631.3,0.53764433]
[1724088911799,2.2809,2634.0,2633.1,3.79775]
[1724088912055,3.79702,2633.7,2633.0,38.79783]
[1724088912253,7.59427,2633.6,2633.0,38.79783]
[1724088912404,7.59379,2633.8,2633.2,3.79754]
[1724088912601,6.07745,2634.0,2632.3,3.7989]
[1724088912840,6.07745,2634.0,2632.4,3.79878]
[1724088912841,3.79789,2633.1,2632.4,3.79878]
[1724088913018,3.79819,2632.9,2631.8,3.79967]
[1724088913346,3.79819,2632.9,2632.3,3.79884]
[1724088913547,7.59638,2632.9,2632.3,3.79884]
[1724088913854,2.397,2633.0,2631.8,38.79967]
[1724088913855,3.79856,2632.6,2631.9,3.79947]
[1724088914052,3.79856,2632.6,2630.9,3.80094]
[1724088914053,3.79854,2632.6,2630.9,3.80094]
[1724088914206,4.03788,2632.9,2631.2,3.80044]
[1724088914207,2.3305,2632.8,2631.2,3.80044]
[1724088914559,2.3305,2632.8,2630.9,3.80089]
[1724088914560,3.80014,2631.5,2630.9,3.80089]
[1724088914851,3.80005,2631.6,2631.0,4.180809]
[1724088915157,2.3305,2631.8,2630.7,4.18618]
[1724088915158,3.80011,2631.5,2630.7,4.18618]
[1724088915359,3.80091,2631.0,2630.5,3.80149]
[1724088915507,3.80034,2631.4,2630.5,3.80146]
[1724088915867,2.3305,2631.8,2630.4,3.8016]
[1724088915868,3.80081,2631.1,2630.4,3.8016]
[1724088916011,3.80081,2631.1,2630.3,3.80176]
[1724088916012,7.60212,2630.9,2630.3,3.80176]
[1724088916331,3.8015,2630.6,2629.9,3.80228]
[1724088916542,7.60333,2630.5,2629.9,4.182508]
[1724088916703,3.79986,2631.7,2629.9,4.182508]
[1724088916704,2.4882,2632.2,2630.7,3.80122]
[1724088916905,2.4882,2632.2,2631.6,3.79984]
[1724088917128,3.79829,2632.8,2632.0,3.79938]
[1724088917129,3.79832,2632.8,2632.0,3.79938]
[1724088917328,2.5459,2632.9,2631.6,4.179874]
[1724088917544,2.5459,2632.9,2631.0,0.385]
[1724088917545,3.79953,2632.0,2631.0,0.385]
[1724088917745,3.79971,2631.8,2631.2,3.80045]
[1724088917944,3.80037,2631.4,2630.8,3.80101]
[1724088918147,3.80037,2631.4,2630.6,3.80138]
[1724088918148,3.80055,2631.2,2630.6,3.80129]
[1724088918581,3.80062,2631.2,2630.5,3.80152]
[1724088918745,2.3062,2631.9,2630.8,3.80102]
[1724088918746,3.79994,2631.7,2630.8,3.80102]
[1724088918948,3.80051,2631.3,2630.7,3.80116]
[1724088919149,3.80077,2631.1,2630.5,3.8015]
[1724088919357,3.80094,2631.0,2630.3,3.80174]
[1724088919585,3.80094,2631.0,2630.3,4.220414]
[1724088919796,3.81209818,2631.8,2630.5,3.80146]
[1724088919797,0.01237818,2631.8,2630.5,3.80146]
[1724088920087,3.79971,2631.8,2630.7,3.80119]
[1724088920293,3.80009,2631.6,2631.0,3.80074]
[1724088920577,3.80027,2631.4,2630.5,0.385]
[1724088920783,6.10577,2631.9,2630.8,3.80111]
[1724088920964,3.80069,2631.1,2630.6,3.80131]
[1724088921164,3.80124,2630.8,2630.0,7.60434]
[1724088921348,3.80121,2630.8,2630.1,3.80212]
[1724088921535,6.2707,2631.0,2629.9,3.80235]
[1724088921738,6.2707,2631.0,2629.5,35.0]
[1724088921739,2.4698,2631.0,2629.5,35.0]
[1724088921936,2.4698,2631.0,2629.8,3.80248]
[1724088921937,3.80178,2630.4,2629.8,3.80248]
[1724088922355,7.60361,2630.4,2629.8,3.80248]
[1724088922556,7.60358,2630.4,2629.8,3.80248]
[1724088922756,6.27072,2631.0,2629.8,3.80247]
[1724088922961,6.79509408,2632.9,2630.4,0.385]
[1724088923142,2.2765,2632.0,2631.0,0.385]
[1724088923344,6.0759,2632.0,2631.4,3.80022]
[1724088923591,6.0759,2632.0,2630.5,3.80146]
[1724088923592,3.80069,2631.1,2630.5,3.80146]
[1724088923742,3.80062,2631.2,2629.8,9.65870839]
[1724088923942,3.80034,2631.4,2630.7,3.80124]
[1724088924193,3.80097,2631.0,2630.2,3.80194]
[1724088924405,3.80097,2631.0,2629.4,3.80309]
[1724088924406,3.80111,2630.9,2630.3,3.80173]
[1724088924545,2.3685,2631.1,2630.1,3.80203]
[1724088924744,3.80121,2630.8,2630.2,3.8019]
[1724088925015,2.3685,2631.1,2629.9,3.80232]
[1724088925301,3.80175,2630.4,2629.8,3.80256]
[1724088925464,7.60304,2630.6,2629.8,3.80249]
[1724088925799,3.80193,2630.3,2629.4,3.80309]
[1724088925991,3.80236,2630.0,2629.4,3.80309]
[1724088926144,3.80257,2629.9,2629.4,7.60613]
[1724088926347,6.17071,2630.1,2629.4,3.80305]
[1724088926561,3.80228,2630.0,2629.4,3.80305]
[1724088926764,3.80243,2629.9,2629.4,3.80305]
[1724088926965,3.80259,2629.8,2629.2,3.80334]
[1724088927261,2.2512,2629.0,2628.2,0.06628817]
[1724088927460,3.80399,2628.9,2628.3,3.80473]
[1724088927694,3.80399,2628.9,2628.1,3.80492]
[1724088927860,2.2512,2629.0,2628.4,3.80452]
[1724088928063,4.03917,2630.0,2626.8,3.80685]
[1724088928064,6.05414,2629.6,2628.9,3.80377]
[1724088928263,6.05414,2629.6,2628.3,3.80473]
[1724088928264,3.80366,2629.1,2628.3,3.80473]
[1724088928464,7.60759,2629.0,2628.3,3.80464]
[1724088928664,3.80374,2629.0,2628.4,3.80456]
[1724088928862,3.80424,2628.7,2628.1,7.60986]
[1724088929181,2.2512,2629.6,2625.8,3.39374418]
[1724088929182,3.80334,2629.3,2626.0,5.713]
[1724088929350,3.80468,2628.4,2627.1,0.23186755]
[1724088929553,0.22512,2629.5,2628.3,3.80466]
[1724088929554,3.80387,2628.9,2628.3,3.80466]
[1724088929944,3.8035,2629.2,2628.3,3.80463]
[1724088930101,3.8035,2629.2,2628.1,3.80493]
[1724088930102,7.60853,2628.7,2628.1,3.80493]
[1724088930398,3.80392,2628.9,2628.2,3.80478]
[1724088930693,2.2512,2629.4,2627.5,0.0760928]
[1724088930895,2.2512,2629.4,2628.8,3.80397]
[1724088931066,2.2512,2629.4,2627.7,3.80555]
[1724088931067,2.2512,2629.4,2628.6,3.80422]
[1724088931268,2.2512,2629.4,2628.4,3.80454]
[1724088931269,3.80359,2629.1,2628.4,3.80454]
[1724088931491,3.80359,2629.1,2627.7,3.0]
[1724088931492,3.80366,2629.1,2627.7,3.0]
[1724088931694,3.80424,2628.7,2628.1,3.80495]
[1724088931857,3.80392,2628.9,2627.8,0.07872706]
[1724088932062,3.80444,2628.6,2628.2,0.06406129]
[1724088932395,3.80463,2628.4,2628.3,0.06406129]
[1724088932598,3.80333,2629.3,2628.3,3.86866129]
[1724088932895,3.80394,2628.9,2628.3,3.8046]
[1724088933067,3.8038,2629.0,2628.2,3.80479]
[1724088933267,2.2512,2629.4,2628.8,3.80398]
[1724088933268,6.05443,2629.4,2628.8,3.80398]
[1724088933469,6.05443,2629.4,2628.8,3.80393]
[1724088933673,6.05443,2629.4,2628.9,0.06418117]
[1724088933892,3.80351,2629.2,2628.9,0.06418117]
[1724088934054,7.60744,2629.0,2628.9,0.06418117]
[1724088934251,7.60744,2629.0,2628.2,3.80479]
[1724088934252,3.80372,2629.0,2628.3,3.80459]
[1724088934495,3.80404,2628.8,2628.2,3.80475]
[1724088934699,3.80404,2628.8,2628.4,0.06181075]
[1724088934903,2.856643,2629.4,2628.4,0.13789917]
[1724088934904,2.2512,2629.4,2628.4,0.13789917]
[1724088935059,2.2512,2629.4,2628.9,3.80384]
[1724088935254,2.2512,2629.4,2629.0,3.80363]
[1724088935570,3.80174,2630.4,2629.0,3.80363]
[1724088935571,2.4542,2629.9,2629.5,3.80297]
[1724088935758,2.4542,2629.9,2629.1,0.13788057]
[1724088935759,6.25676,2629.9,2629.2,3.80336]
[1724088935961,3.80323,2629.4,2629.3,0.06164692]
[1724088936196,2.4542,2629.9,2628.6,7.60845]
[1724088936502,3.80194,2630.3,2629.7,3.80259]
[1724088936798,2.4542,2630.4,2629.7,3.80259]
[1724088936799,2.4542,2630.4,2629.8,0.06148312]
[1724088937005,3.80193,2630.3,2629.8,0.06148312]
[1724088937208,2.4542,2630.4,2629.8,0.06148312]
[1724088937355,2.294,2631.0,2630.4,3.80169]
[1724088937609,2.294,2631.0,2630.5,3.86292793]
[1724088938074,6.09415,2631.5,2630.8,3.80104]
[1724088938359,6.09415,2631.5,2630.8,3.801]
[1724088938542,6.09415,2631.5,2630.9,3.80097]
[1724088938910,6.09415,2631.5,2631.0,0.06051309]
[1724088939313,3.7996,2631.9,2631.3,3.80038]
[1724088939520,6.08022,2632.1,2631.4,3.80012]
[1724088939838,2.2809,2632.7,2632.0,3.79928]
[1724088940356,2.2809,2632.7,2632.1,3.85880089]
[1724088940540,3.79879,2632.5,2632.1,0.05965089]
[1724088940943,3.79956,2631.9,2631.2,3.80044]
[1724088941132,3.79872,2632.5,2631.2,3.80044]
[1724088941133,3.79943,2632.0,2631.4,3.80025]
[1724088941337,3.79943,2632.0,2631.2,3.80044]
[1724088941569,3.79968,2631.8,2631.0,3.80077]
[1724088941870,7.60008,2631.6,2630.9,3.80096]
[1724088942021,2.294,2631.7,2629.9,2.4837]
[1724088942022,2.294,2631.7,2630.4,0.385]
[1724088942225,2.294,2631.7,2631.1,3.8006]
[1724088942428,6.09383,2631.7,2630.9,3.80087]
[1724088942680,3.8,2631.6,2630.9,3.80086]
[1724088942992,3.8,2631.6,2630.5,3.80146]
[1724088942993,3.80078,2631.1,2630.5,3.80146]
[1724088943266,3.80078,2631.1,2630.3,3.80171]
[1724088943466,3.80049,2631.3,2630.5,3.80142]
[1724088943682,3.801,2630.9,2630.3,3.80178]
[1724088943825,3.80078,2631.1,2630.3,3.80178]
[1724088944025,3.80047,2631.3,2630.6,3.80131]
[1724088944238,3.80047,2631.3,2630.8,3.80112]
[1724088944441,3.80047,2631.3,2630.6,3.80129]
[1724088944627,3.80018,2631.5,2630.7,3.80116]
[1724088944931,3.80049,2631.3,2630.6,3.80129]
[1724088945125,9.89384,2631.7,2630.6,4.181489]
[1724088945365,9.89384,2631.7,2630.6,4.181469]
[1724088945366,3.80013,2631.5,2630.6,4.181469]
[1724088945572,3.80019,2631.5,2630.8,3.80099]
[1724088945741,6.09388,2631.7,2630.4,3.80161]
[1724088945742,2.294,2631.7,2630.4,3.80161]
[1724088945942,3.80125,2630.8,2630.0,3.80221]
[1724088946145,3.80125,2630.8,2629.8,3.80249]
[1724088946146,2.294,2631.7,2629.5,3.80295]
[1724088946346,7.60275,2630.7,2630.0,3.80217]
[1724088946541,0.5294,2631.6,2629.6,0.42686144]
[1724088946542,3.80145,2630.6,2629.6,0.42686144]
[1724088946740,3.80145,2630.6,2629.9,3.8023]
[1724088946741,3.8016,2630.5,2629.9,3.8023]
[1724088946965,3.8016,2630.5,2629.4,4.26878435]
[1724088946966,2.3557,2630.8,2629.6,3.80277]
[1724088947161,3.80228,2630.0,2629.4,3.80308]
[1724088947474,3.80228,2630.0,2629.4,3.80305]
[1724088947670,7.60498,2629.9,2629.3,3.80328]
[1724088947872,3.80205,2630.2,2629.0,3.80364]
[1724088948074,3.80271,2629.7,2628.8,3.80388]
[1724088948288,3.80341,2629.3,2628.6,3.80422]
[1724088948433,7.60621,2629.5,2628.9,3.80374]
[1724088948626,6.15817,2629.9,2628.6,3.80424]
[1724088948627,3.80366,2629.1,2628.6,3.80424]
[1724088948853,3.80366,2629.1,2628.5,4.18944]
[1724088949103,3.80366,2629.1,2628.6,3.80426]
[1724088949307,2.3557,2630.5,2629.0,3.8036]
[1724088949602,3.80211,2630.2,2629.6,3.80285]
[1724088949747,3.80211,2630.2,2629.4,3.80302]
[1724088949748,3.80217,2630.1,2629.4,3.80302]
[1724088949957,3.80217,2630.1,2629.1,3.80354]
[1724088949958,3.80221,2630.1,2629.5,3.80295]
[1724088950285,2.3557,2630.5,2629.7,3.80258]
[1724088950286,3.80191,2630.3,2629.7,3.80258]
[1724088950483,6.15734,2630.5,2629.8,3.80246]
[1724088950668,6.15734,2630.5,2629.8,3.80245]
[1724088950669,3.80179,2630.4,2629.8,3.80245]
[1724088950865,2.3557,2630.5,2629.9,0.05965089]
[1724088951072,5.363,2631.3,2630.2,7.60381]
[1724088951073,3.80114,2630.8,2630.2,7.60381]
[1724088951371,2.4068,2631.0,2630.7,3.80125]
[1724088951701,2.4068,2631.0,2630.8,0.05948719]
[1724088952001,11.40294,2630.9,2630.8,0.05948719]
[1724088952183,3.80199,2630.2,2629.5,3.80288]
[1724088952523,3.80199,2630.2,2629.0,4.18402]
[1724088952524,2.4068,2630.2,2629.6,0.05948719]
[1724088952703,2.4068,2630.2,2629.6,3.86226719]
[1724088952704,3.80215,2630.1,2629.6,3.86226719]
[1724088952900,2.4068,2630.2,2629.7,3.80269]
[1724088952901,6.2088,2630.2,2629.7,3.80269]
[1724088953100,6.2088,2630.2,2629.7,0.0599402]
[1724088953101,2.4068,2630.2,2629.7,0.0599402]
[1724088953400,3.80257,2629.8,2629.7,0.0599402]
[1724088953601,3.80257,2629.8,2629.0,3.80366]
[1724088953602,0.24068,2630.1,2629.0,3.80362]
[1724088953802,3.80257,2629.8,2629.7,0.0599465]
[1724088953952,3.80281,2629.7,2629.2,3.80342]
[1724088954157,3.80279,2629.7,2629.2,3.80342]
[1724088954383,0.760531,2629.7,2628.8,3.80393]
[1724088954654,0.760531,2629.7,2628.6,3.80422]
[1724088954655,3.80346,2629.2,2628.6,3.80422]
[1724088955070,3.80359,2629.1,2628.6,3.80422]
[1724088955267,3.80359,2629.1,2627.9,3.80528]
[1724088955268,3.80358,2629.1,2627.9,3.80528]
[1724088955497,2.4068,2629.4,2628.3,3.80469]
[1724088955707,3.80381,2629.0,2628.3,3.80469]
[1724088955903,2.4068,2629.4,2628.6,3.8043]
[1724088955904,3.80362,2629.1,2628.6,3.8043]
[1724088956067,3.80347,2629.2,2628.4,7.60905]
[1724088956302,2.4068,2629.4,2628.4,0.4422272]
[1724088956303,6.21003,2629.4,2628.4,0.4422272]
[1724088956504,3.80342,2629.3,2628.7,3.80405]
[1724088956688,2.4068,2629.4,2628.9,3.80378]
[1724088956896,6.20995,2629.4,2628.9,3.80378]
[1724088957090,2.4068,2629.4,2628.9,3.80379]
[1724088957407,3.80331,2629.3,2628.5,3.80438]
[1724088957732,3.80366,2629.1,2628.5,3.80434]
[1724088957934,7.6079,2628.9,2628.3,3.80464]
[1724088958343,3.8039,2628.9,2628.3,3.80464]
[1724088958494,7.60786,2628.9,2628.3,3.8047]
[1724088958694,3.8039,2628.9,2628.3,7.6094]
[1724088958939,3.8039,2628.9,2628.4,3.80458]
[1724088959237,3.8039,2628.9,2628.3,3.80464]
[1724088959600,7.60786,2628.9,2628.3,3.80464]
[1724088959834,4.564686,2628.9,2627.9,4.1902]
[1724088960008,3.80457,2628.5,2627.9,3.8052]
[1724088960345,3.80396,2628.9,2628.4,3.80457]
[1724088960636,3.80402,2628.8,2628.3,3.80466]
[1724088960936,3.80394,2628.9,2628.3,3.80466]
[1724088961135,3.80407,2628.8,2628.3,3.80466]
[1724088961334,3.80385,2629.0,2628.4,3.80451]
[1724088961551,3.80385,2629.0,2628.3,3.80466]
[1724088961552,3.80385,2629.0,2628.5,3.80444]
[1724088961709,3.80385,2629.0,2628.5,3.80436]
[1724088961913,3.80452,2628.5,2627.9,3.80522]
[1724088962097,3.80396,2628.9,2628.1,3.805]
[1724088962305,3.80336,2629.3,2628.8,3.80393]
[1724088962496,2.64748,2629.4,2628.8,3.80393]
[1724088962497,2.4068,2629.4,2628.8,3.80393]
[1724088962819,2.4022,2630.0,2629.6,3.80277]
[1724088963017,3.80157,2630.5,2629.9,3.80232]
[1724088963199,3.80178,2630.4,2630.0,0.06173513]
[1724088963395,2.4022,2630.6,2629.8,0.07604352]
[1724088963649,2.4022,2630.6,2629.9,0.06173513]
[1724088963809,3.80198,2630.3,2629.9,0.06173513]
[1724088964149,3.80216,2630.1,2629.6,3.80283]
[1724088964329,4.04185,2630.5,2630.0,3.86398513]
[1724088964669,3.80074,2631.1,2630.1,0.06173513]
[1724088964966,3.80091,2631.0,2630.1,0.06173513]
[1724088965095,3.80205,2630.2,2629.6,3.80277]
[1724088965494,3.80178,2630.4,2629.7,0.06092271]
[1724088965744,3.80178,2630.4,2629.9,3.80242]
[1724088966101,3.80178,2630.4,2629.6,3.80277]
[1724088966102,3.80178,2630.4,2630.0,0.06088494]
[1724088966504,0.760165,2630.9,2629.8,3.80244]
[1724088966751,6.14143,2631.2,2630.1,0.06088494]
[1724088966948,6.14143,2631.2,2630.6,3.80132]
[1724088967443,6.14143,2631.2,2629.8,3.80253]
[1724088967444,2.2719,2631.6,2630.7,0.06083459]
[1724088967647,6.07193,2631.6,2630.7,3.86197459]
[1724088967946,3.80048,2631.3,2630.7,3.80114]
[1724088968259,0.607193,2631.5,2630.8,0.060413]
[1724088968544,3.80064,2631.2,2630.8,0.060413]
[1724088968749,2.2719,2631.6,2630.3,3.8018]
[1724088968947,2.2719,2631.6,2630.9,0.05895223]
[1724088968948,3.80091,2631.0,2630.9,0.05895223]
[1724088969154,7.60274,2630.7,2630.1,3.80209]
[1724088969443,0.380091,2631.0,2629.9,3.80234]
[1724088969444,3.80152,2630.6,2630.2,0.05893336]
[1724088969658,3.80179,2630.4,2630.2,0.05893336]
[1724088969958,3.80179,2630.4,2629.7,3.80266]
[1724088969959,3.80179,2630.4,2629.8,3.80255]
[1724088970264,3.80179,2630.4,2629.9,3.80239]
[1724088970438,3.8021,2630.2,2629.9,0.05841518]
[1724088970743,3.80207,2630.2,2629.9,0.05841518]
[1724088970911,3.80207,2630.2,2629.5,3.8029]
[1724088971114,7.60361,2630.4,2630.0,0.05841518]
[1724088971344,3.094761,2630.4,2629.5,3.80297]
[1724088971655,3.80227,2630.1,2629.3,3.80323]
[1724088971803,3.80227,2630.1,2628.9,3.80386]
[1724088971804,3.80228,2630.0,2628.9,3.80375]
[1724088972003,3.80185,2630.3,2628.5,3.80439]
[1724088972004,3.80353,2629.2,2628.5,3.80439]
[1724088972202,3.80362,2629.1,2628.5,3.80439]
[1724088972455,3.80353,2629.2,2628.5,3.80439]
[1724088972598,3.80367,2629.1,2628.5,3.80439]
[1724088972803,0.76072,2629.1,2627.6,3.80561]
[1724088972999,3.80342,2629.3,2628.0,3.80506]
[1724088973000,3.80426,2628.7,2628.0,3.80506]
[1724088973508,3.80426,2628.7,2628.1,3.80499]
[1724088973861,3.80426,2628.7,2628.0,3.80506]
[1724088973862,3.80397,2628.9,2628.2,3.80487]
[1724088974065,3.80397,2628.9,2628.0,3.80506]
[1724088974066,3.80338,2629.3,2628.6,3.8042]
[1724088974349,3.80338,2629.3,2628.7,3.80413]
[1724088974679,2.3344,2629.6,2628.1,0.761005]